[Event "101st Irish Championship 2022"]
[Site "Dublin"]
[Date "2022.07.05"]
[Round "4.10"]
[White "Kennedy, John"]
[Black "Keogh, Eamon"]
[Result "1-0"]
[ECO "D78"]
[WhiteElo "2047"]
[BlackElo "1931"]
[Annotator "TA"]
[PlyCount "39"]
[EventDate "2022.07.05"]
[EventType "swiss"]
[EventCountry "IRL"]
[SourceTitle "playchess.com"]
[Source "ChessBase"]
[SourceQuality "1"]
[TimeControl "40/6300+30:1800+30"]

{[%evp 13,39,-25,41,43,105,116,304,311,304,231,775,772,827,825,924,925,1005,924,1451,1458,1447,1447,1410,1388,1591,1324,1297,1291]} 1. Nf3 {[%emt 0:00:01]} g6 {[%emt 0:00:16]} 2. g3 {[%emt 0:00:05]} Bg7 {[%emt 0:00:22]} 3. d4 {[%emt 0:00:05]} Nf6 {[%emt 0:00:21]} 4. Bg2 {[%emt 0:00:05]} d5 {[%emt 0:00:21]} 5. O-O {[%emt 0:00:06]} O-O {[%emt 0:00:29]} 6. c4 {[%emt 0:00:29]} c6 {[%emt 0:00:55] 6...c6 scores better than 6...dxc4.} 7. Nc3 {[%emt 0:00:11]} Re8 {[%emt 0:02:57]} ({Black should try} 7... dxc4 $11 8. e4 b5) 8. Ne5 $14 {[%emt 0:01:13] [#] D78: Fianchetto Grünfeld: 6 0-0 c6.} Bf5 $146 {[%emt 0:05:06] [#]} ({Black should play} 8... Be6 $14) ({Predecessor:} 8... dxc4 9. Nxc4 Nbd7 10. e4 Nb6 11. Nxb6 Qxb6 12. Na4 Qa5 13. Bd2 Qh5 14. Qxh5 Nxh5 {1-0 (53) Pilarte,R (2066)-Ortiz,H (1848) Managua 2020}) 9. Qb3 $1 $16 {[%emt 0:03:28][%csl LRb7,LRd5] White is more active.} dxc4 $2 {[%emt 0:06:54]} (9... Nbd7 $16) 10. Qxb7 $18 {[%emt 0:00:53] White has a decisive advantage.} Qxd4 {[%emt 0:00:48]} 11. Qxa8 {[%emt 0:01:21]} ({Less strong is} 11. Nf3 Qb6 12. Qxa8 Nbd7 $16) 11... Nbd7 $2 {[%emt 0:00:57]} (11... Qxe5 12. Qxa7 (12. Bf4 Qa5 $18) 12... Qe6) 12. Nxc6 {[%emt 0:01:18] White is clearly winning.} Qd6 {[%emt 0:05:46]} 13. Qxa7 {[%emt 0:00:29]} e5 {[%emt 0:02:00]} 14. Nb5 {[%emt 0:04:38]} Qf8 {[%emt 0:08:25]} 15. Bd2 {[%emt 0:00:38] Strongly threatening Bb4.} Nc5 {[%emt 0:02:15]} 16. Bb4 {[%emt 0:00:35]} Nfd7 {[%emt 1:15:38]} 17. Rfd1 {[%emt 0:00:26][%cal Bf1d1,Bd1d7,Bd7d8][%mdl 32]} e4 {[%emt 0:00:00] [#]} 18. Rxd7 $1 {[%emt 0:01:05]} Ra8 {[%emt 0:00:00]} (18... Bxd7 19. Bxc5) 19. Qxa8 {[%emt 0:00:11]} Qxa8 {[%emt 0:00:00]} 20. Rd8+ {[%emt 0:00:02] Black did not feel at home in the position after the opening.  Weighted Error Value: White=0.24 (precise) /Black=0.95} 1-0

[Event "101st Irish Championship 2022"]
[Site "Dublin"]
[Date "2022.07.05"]
[Round "4.11"]
[White "Liu, Jason"]
[Black "O`Gorman, Alice"]
[Result "0-1"]
[ECO "B87"]
[WhiteElo "1746"]
[BlackElo "2043"]
[Annotator "TA"]
[PlyCount "69"]
[EventDate "2022.07.05"]
[EventType "swiss"]
[EventCountry "IRL"]
[SourceTitle "playchess.com"]
[Source "ChessBase"]
[SourceQuality "1"]
[TimeControl "40/6300+30:1800+30"]

{[%evp 20,69,5,23,19,-3,-6,-13,0,0,36,-10,22,-6,-14,-95,46,-47,49,-72,-43,-93,-87,-382,-366,-427,-60,-289,-297,-738,-769,-762,-739,-709,-716,-29984,-29985,-29988,-29989,-29989,-29990,-29990,-5030,-29993,-29994,-29994,-29995,-29995,-29996,-29996,-12839,-1185]} 1. e4 {[%emt 0:00:03]} c5 {[%emt 0:00:11]} 2. Nf3 {[%emt 0:00:35]} d6 {[%emt 0:00:06]} 3. d4 {[%emt 0:00:10]} cxd4 {[%emt 0:00:06]} 4. Nxd4 {[%emt 0:00:06]} Nf6 {[%emt 0:00:06]} 5. Nc3 {[%emt 0:00:12]} a6 {[%emt 0:00:03]} 6. Bc4 {[%emt 0:00:41]} e6 {[%emt 0:01:38]} 7. Bb3 {[%emt 0:01:01]} b5 {[%emt 0:00:06]} 8. Be3 {[%emt 0:04:18]} Be7 {[%emt 0:00:49]} 9. Qe2 {[%emt 0:02:52]} O-O {[%emt 0:01:15]} 10. O-O-O {[%emt 0:04:37]} Bd7 {[%emt 0:01:28]} 11. a3 $1 {[%emt 0:09:09]} Qc7 {[%emt 0:03:44] B87: Sicilian Scheveningen/Najdorf: 6 Bc4, with early ...b5.} 12. f3 {[%emt 0:03:12]} Nc6 {[%emt 0:02:43]} 13. g4 $1 {[%emt 0:09:08]} Rfb8 {[%emt 0:15:54] The position is equal.} 14. g5 {[%emt 0:10:40] [#]} Ne8 $146 {[%emt 0:02:59]} ({Predecessor:} 14... Nxd4 15. Bxd4 Ne8 16. h4 a5 17. Rhf1 a4 18. Ba2 b4 19. axb4 Rxb4 20. Nb1 Bb5 {1-0 (49) Mahe,R (1970)-Mazaltob,G (1570) Elancourt 2005}) 15. Nxc6 {[%emt 0:11:52]} (15. f4 $14) 15... Qxc6 {[%emt 0:03:51]} 16. h4 {[%emt 0:07:45]} a5 {[%emt 0:01:58][%cal Ba6a5,Ba5a4][%mdl 32]} 17. Rd4 {[%emt 0:17:24]} (17. a4 $11 bxa4 18. Bxa4) 17... Bd8 {[%emt 0:06:46]} ({Better is} 17... b4 $17 18. axb4 axb4) 18. h5 {[%emt 0:07:04]} ({White should try} 18. a4 $1 $14) 18... Bb6 {[%emt 0:03:53] [#]} (18... b4 $15 19. h6 g6 20. axb4 axb4) 19. Rd2 {[%emt 0:02:17]} (19. g6 $1 $14 {stays ahead.}) 19... a4 {[%emt 0:05:54]} 20. Ba2 {[%emt 0:04:01]} (20. Nd5 $15 exd5 21. Bxd5) 20... b4 $1 $36 {[%emt 0:10:31][%cal Bb5b4,Bb4a3,Ba3b2][%mdl 2080] Black is on the roll. White is now going downhill.} 21. Nd5 {[%emt 0:11:46][%mdl 8192]} exd5 $19 {[%emt 0:01:28]} 22. Bxd5 {[%emt 0:00:22] [#]} Qc7 {[%emt 0:04:23]} (22... bxa3 $1 $19 23. Kb1 (23. Bxc6 $2 {is the wrong capture.} a2 $19) 23... Qc7 $1 24. Bxa8 Rxa8 25. Bxb6 Qxb6) 23. g6 $2 {[%emt 0:03:24]} (23. Bxa8 $15 bxa3 24. Bd5) 23... Be6 {[%emt 0:07:57]} 24. h6 $2 {[%emt 0:01:43] [#]} (24. Bxb6 Qxb6 25. Qc4) 24... bxa3 $1 {[%emt 0:15:17]} 25. hxg7 {[%emt 0:01:23]} axb2+ {[%emt 0:02:21]} 26. Kb1 {[%emt 0:00:08] [#]} Nxg7 $1 {[%emt 0:04:56][%cal Oa4a3] Strongly threatening ...a3!} 27. Rxh7 {[%emt 0:01:59] [#]} (27. Bxb6 a3) 27... a3 $1 {[%emt 0:05:04]} 28. gxf7+ {[%emt 0:00:56]} (28. Rh8+ Kxh8) 28... Qxf7 {[%emt 0:05:50]} (28... Kxh7 $2 29. Qh2+ Kg6 30. Rg2+ Kxf7 31. Rxg7+ Kxg7 32. Qh6+ Kg8 33. Bxe6+ Qf7 34. Qg6+ (34. Bxf7+ Kxf7 35. Qh7+ Kf6 $11) 34... Kh8 35. Bxf7 $18) 29. Rxg7+ {[%emt 0:00:22]} Kxg7 {[%emt 0:01:57]} 30. Qg2+ {[%emt 0:00:12]} Qg6 {[%emt 0:01:19]} (30... Kf8 $142 31. Bh6+ Ke8 32. Bc6+ Kd8 33. Qg8+ Qxg8 34. Bg5+ Qxg5 35. Rxd6+ Kc7 36. Rd7+ Bxd7 37. Ka2 {[#]} Qg1 $1 38. Bxa8 b1=Q+ 39. Kxa3 Rxa8#) 31. Bxb6 {[%emt 0:01:03]} a2+ {[%emt 0:01:05]} 32. Bxa2 {[%emt 0:00:17]} Bxa2+ {[%emt 0:00:06]} 33. Kxb2 {[%emt 0:00:23]} Rxb6+ {[%emt 0:00:10]} 34. Kc3 {[%emt 0:00:05]} Qxg2 {[%emt 0:00:24]} (34... Ra3+ $142 35. Kd4 Rb4+ 36. c4 Rxc4+ 37. Kd5 Ra5#) 35. Rxg2+ {[%emt 0:00:08] Weighted Error Value: White=1.24/Black=0.81} 0-1

[Event "101st Irish Championship 2022"]
[Site "Dublin"]
[Date "2022.07.06"]
[Round "5.1"]
[White "Kanyamarala, Tarun"]
[Black "O`Donnell, Conor"]
[Result "1/2-1/2"]
[ECO "D27"]
[WhiteElo "2379"]
[BlackElo "2269"]
[Annotator "TA"]
[PlyCount "47"]
[EventDate "2022.07.05"]
[EventType "swiss"]
[EventCountry "IRL"]
[SourceTitle "playchess.com"]
[Source "ChessBase"]
[SourceQuality "1"]
[TimeControl "40/6300+30:1800+30"]

{[%evp 11,47,21,27,18,15,4,10,0,0,14,13,14,29,0,0,0,23,0,0,0,8,0,0,-16,0,0,0,0,0,0,0,0,0,0,0,0,0,0]} 1. d4 {[%emt 0:00:06]} d5 {[%emt 0:01:04]} 2. c4 {[%emt 0:00:13]} dxc4 {[%emt 0:00:09]} 3. e3 {[%emt 0:01:14]} Nf6 {[%emt 0:00:31]} 4. Bxc4 {[%emt 0:00:22]} e6 {[%emt 0:00:11]} 5. Nf3 {[%emt 0:00:11]} a6 {[%emt 0:00:45]} 6. O-O {[%emt 0:00:26]} c5 {[%emt 0:00:15]} 7. Re1 {[%emt 0:00:53] D27: Queen's Gambit Accepted: Classical main line: 7 e4!? and 7 a4.} b5 {[%emt 0:08:34]} 8. Bd3 {[%emt 0:03:57]} Bb7 {[%emt 0:06:56]} 9. a4 {[%emt 0:06:25]} b4 {[%emt 0:04:29]} 10. Nbd2 {[%emt 0:01:17]} Be7 {[%emt 0:06:23]} 11. Qe2 {[%emt 0:05:22]} Nbd7 {[%emt 0:07:27] [#]} 12. Nc4 $146 {[%emt 0:07:26]} ({Predecessor:} 12. e4 cxd4 13. e5 Nd5 14. Nb3 O-O 15. Nbxd4 Nc5 16. Bc2 g6 17. Bh6 Re8 18. Rad1 {0-1 (61) Chylewski,P (2400)-Maly,A (2351) Chess.com INT 2019}) 12... O-O {[%emt 0:05:59]} 13. a5 {[%emt 0:06:14]} Qb8 {[%emt 0:03:21]} 14. e4 {[%emt 0:21:05][%cal Be3e4,Be4e5][%mdl 32]} (14. Rd1 {keeps more tension.} Rc8 15. Nfe5 Bd5 16. b3) 14... cxd4 {[%emt 0:00:07] The position is equal.} 15. e5 {[%emt 0:00:51]} Bxf3 {[%emt 0:01:25]} 16. Qxf3 {[%emt 0:04:06]} Nd5 {[%emt 0:00:04]} 17. Be4 {[%emt 0:17:59] [#] aiming for Qh3.} Qb5 {[%emt 0:10:47]} 18. Qd3 {[%emt 0:05:12][%csl LRd4,LRh7]} g6 {[%emt 0:13:09]} 19. Qxd4 {[%emt 0:02:48]} Rfd8 {[%emt 0:11:06]} (19... Bc5 $5 20. Qd3 Be7 $11) 20. Bh6 {[%emt 0:09:14]} Bc5 {[%emt 0:06:50]} 21. Qd3 {[%emt 0:00:25]} Be7 {[%emt 0:01:17]} 22. Qd4 {[%emt 0:02:50]} Bc5 {[%emt 0:05:26]} 23. Qd3 {[%emt 0:00:01]} Be7 {[%emt 0:02:32]} 24. Qd4 {[%emt 0:01:07] An even fight not without its subleties.  Weighted Error Value: White=0.06 (flawless) /Black=0.03 (flawless)} 1/2-1/2

[Event "101st Irish Championship 2022"]
[Site "Dublin"]
[Date "2022.07.06"]
[Round "5.2"]
[White "O`Gorman, Tom"]
[Black "Keenan, Cathal"]
[Result "1-0"]
[ECO "E62"]
[WhiteElo "2401"]
[BlackElo "1811"]
[Annotator "TA"]
[PlyCount "55"]
[EventDate "2022.07.05"]
[EventType "swiss"]
[EventCountry "IRL"]
[SourceTitle "playchess.com"]
[Source "ChessBase"]
[SourceQuality "1"]
[TimeControl "40/6300+30:1800+30"]

{[%evp 13,55,28,45,20,32,18,31,31,27,14,28,0,128,46,49,29,41,25,36,20,12,0,0,0,54,52,79,64,62,81,132,143,365,342,357,338,789,745,939,912,1366,1125,970,757]} 1. c4 {[%emt 0:00:11]} Nf6 {[%emt 0:00:21]} 2. Nf3 {[%emt 0:00:37]} g6 {[%emt 0:02:34]} 3. d4 {[%emt 0:00:17]} Bg7 {[%emt 0:00:11]} 4. g3 {[%emt 0:00:31]} O-O {[%emt 0:00:18]} 5. Bg2 {[%emt 0:00:14]} d6 {[%emt 0:00:23]} 6. O-O {[%emt 0:00:21]} Nc6 {[%emt 0:01:06]} 7. Nc3 {[%emt 0:00:44]} e5 {[%emt 0:00:10]} 8. dxe5 {[%emt 0:00:21] E62: King's Indian: Fianchetto: 6...c6 and Panno Variation (6...Nc6) without ...a6.} Nxe5 {[%emt 0:00:08]} 9. b3 {[%emt 0:02:58]} c6 {[%emt 0:18:01] [#]} 10. Be3 $146 {[%emt 0:07:29] White is slightly better.} ({Predecessor:} 10. Nd4 Re8 11. e4 a6 12. a4 a5 13. Nde2 Bg4 14. f3 Be6 15. Be3 d5 16. Bd4 Nxe4 17. fxe4 dxc4 18. bxc4 Bxc4 {1-0 (109) Mikhalevski,V (2570)-Sepp,O (2411) Batumi 2019}) 10... Qe7 {[%emt 0:05:34]} 11. Rc1 {[%emt 0:11:38]} Rd8 {[%emt 0:03:03]} 12. Nd4 {[%emt 0:12:23]} Ned7 {[%emt 0:12:01] [#]} (12... Neg4 $11 13. Bg5 Nxh2 $1 14. Nxc6 bxc6 15. Bxf6 Bxf6 16. Kxh2 Bb7) 13. Qd2 {[%emt 0:04:09]} (13. Bg5 $6 h6 14. Bf4 Ne5 $11) (13. Bxc6 $1 $16 {[%mdl 512] Black must now prevent Bg2.} Ng4 14. Nd5) 13... Nc5 {[%emt 0:04:03]} 14. Bg5 {[%emt 0:01:03][%cal Og2c6]} Qf8 {[%emt 0:14:43]} 15. b4 {[%emt 0:18:09]} Ne6 {[%emt 0:02:12]} 16. Nxe6 {[%emt 0:00:45]} Bxe6 {[%emt 0:05:04]} 17. Qf4 {[%emt 0:02:26]} Nh5 {[%emt 0:03:28]} 18. Qf3 {[%emt 0:00:43]} Bh6 {[%emt 0:06:59]} (18... f6 $11 19. Bd2 (19. Qe4 $2 Bf5 $19) 19... f5) 19. Ne4 $36 {[%emt 0:06:39][%mdl 2048] White fights for an advantage.} f5 {[%emt 0:01:34]} 20. Qe3 {[%emt 0:00:26]} ({And not} 20. Bxd8 Qxd8 21. Bh3 Ng7 $17) 20... Bxg5 {[%emt 0:03:35]} 21. Nxg5 {[%emt 0:01:47]} Bf7 {[%emt 0:01:07]} (21... Bd7 $142) 22. b5 $16 {[%emt 0:01:37] White is much more active.} d5 $2 {[%emt 0:01:26] Loses the game.} (22... Qe8 $16 {might work better.} 23. Nxf7 Qxe3 24. fxe3 Kxf7) 23. bxc6 {[%emt 0:02:07]} bxc6 {[%emt 0:00:10]} 24. cxd5 {[%emt 0:00:40]} cxd5 {[%emt 0:00:23]} (24... f4 25. gxf4 Bxd5 26. Bxd5+ Rxd5 27. Qe6+ (27. Rxc6 Nxf4 28. Ne6 Nxe6 $16) 27... Kh8) 25. Rc7 $1 $18 {[%emt 0:00:46][%csl LRa7,LRf7] White is clearly winning.} d4 {[%emt 0:05:09]} 26. Qe5 {[%emt 0:01:02]} ({Not} 26. Rxf7 dxe3 27. Rxf8+ Rxf8 $11) 26... Bxa2 {[%emt 0:00:56]} 27. Bxa8 {[%emt 0:00:36]} Rxa8 {[%emt 0:00:06]} 28. Ra1 {[%emt 0:00:50] Weighted Error Value: White=0.16 (very precise) /Black=0.46} 1-0

[Event "101st Irish Championship 2022"]
[Site "Dublin"]
[Date "2022.07.06"]
[Round "5.3"]
[White "Pang, Khai Jie Ryan"]
[Black "Baburin, Alexander"]
[Result "0-1"]
[ECO "B03"]
[WhiteElo "1841"]
[BlackElo "2400"]
[Annotator "TA"]
[PlyCount "86"]
[EventDate "2022.07.05"]
[EventType "swiss"]
[EventCountry "IRL"]
[SourceTitle "playchess.com"]
[Source "ChessBase"]
[SourceQuality "1"]
[TimeControl "40/6300+30:1800+30"]

{[%evp 17,86,35,46,33,66,52,69,57,121,133,139,132,128,99,130,143,121,127,197,-91,166,91,91,99,85,102,103,83,87,71,152,136,138,148,141,56,65,47,118,15,36,-1102,-1095,-1080,-1072,-1041,-979,-1218,-1207,-1134,-1104,-2424,-2256,-1190,0,-894,-888,-811,-795,-799,-452,-432,-431,-543,-523,-1920,-1827,-29984,-29985,-29985,-29986]} 1. e4 {[%emt 0:00:04][%cal Be2e4,Be4e5][%mdl 32]} Nf6 {[%emt 0:13:55]} 2. e5 {[%emt 0:00:16]} Nd5 {[%emt 0:00:06]} 3. c4 {[%emt 0:00:08]} Nb6 {[%emt 0:00:07]} 4. d4 {[%emt 0:00:06]} d6 {[%emt 0:00:04]} 5. exd6 {[%emt 0:00:21]} cxd6 {[%emt 0:00:17]} 6. Nc3 {[%emt 0:01:33]} g6 {[%emt 0:00:36]} 7. Be3 {[%emt 0:00:38]} Bg7 {[%emt 0:05:25]} 8. Rc1 {[%emt 0:00:18]} O-O {[%emt 0:00:07]} 9. b3 {[%emt 0:00:17]} Bf5 {[%emt 0:00:22]} 10. Be2 {[%emt 0:01:15] B03: Alekhine's Defence: Four Pawns Attack.} e5 {[%emt 0:08:14]} 11. d5 {[%emt 0:13:36]} Na6 {[%emt 0:06:03]} 12. h4 {[%emt 0:05:25] [#] White is slightly better.} Bc8 $146 {[%emt 0:25:22]} ({Black should try} 12... h5 $14) ({Predecessor:} 12... h5 13. Nf3 Nc5 14. O-O Rc8 15. Ng5 a5 16. g3 Nbd7 17. Nb5 Qe7 18. Qd2 b6 {1-0 (43) Felgaer,R (2572)-Espinosa Aranda,A (2506) chess24.com INT 2020}) 13. h5 $1 $16 {[%emt 0:04:40]} f5 {[%emt 0:05:00]} 14. hxg6 {[%emt 0:01:56]} hxg6 {[%emt 0:00:05]} 15. g4 {[%emt 0:01:37]} Nd7 {[%emt 0:07:28]} 16. gxf5 {[%emt 0:06:11]} gxf5 {[%emt 0:00:15]} 17. Nf3 {[%emt 0:01:57]} f4 {[%emt 0:03:25] [#]} (17... Nf6 $16) 18. Bd2 $2 {[%emt 0:01:03]} ({White must play} 18. Qc2 $1 $18 {[%cal Rc2h7]} Nf6 19. Bd2) 18... Nf6 {[%emt 0:03:21][%mdl 8192]} (18... Ndc5 $1 $17 {and life is bright.} 19. Nh4 (19. Qc2 $2 Bf5 $19) 19... Rf6) 19. Ng5 {[%emt 0:01:37] Prevents e4.} (19. Qc2 $1 $18) 19... Bf5 {[%emt 0:01:14] Prevents Bd3.} 20. Ne6 {[%emt 0:04:33]} Bxe6 {[%emt 0:01:30]} 21. dxe6 {[%emt 0:00:26]} Nc5 {[%emt 0:00:31]} 22. Nd5 {[%emt 0:10:53] e7 is the strong threat.} Nxe6 {[%emt 0:01:19]} 23. Bf3 {[%emt 0:00:57]} Nc5 {[%emt 0:13:36]} (23... Qd7 $142) 24. Nxf6+ $1 {[%emt 0:01:11]} Rxf6 {[%emt 0:00:07] [#]} 25. Bd5+ {[%emt 0:00:47]} (25. Qc2 e4 26. Bc3 (26. Bxe4 $2 Re6 $19) 26... exf3 $17) 25... Kf8 {[%emt 0:00:06]} 26. Qc2 {[%emt 0:04:27] Against Nd3+} (26. Qh5 $16) 26... e4 $1 $14 {[%emt 0:04:29]} 27. Bc3 {[%emt 0:06:37] A strong pair of Bishops.} (27. Kf1 $5 {[%cal Rd2c3]}) 27... Nd3+ {[%emt 0:02:06]} (27... Rh6 $1 $14 28. Kd2 Rxh1 29. Rxh1 (29. Bxg7+ Kxg7 30. Rxh1 Qf6 $11) 29... Qg5) 28. Kd1 {[%emt 0:09:46]} (28. Kf1 $16 {And now Rd1 would win.} Nxc1 29. Qxc1) 28... Qb6 {[%emt 0:06:55] [#] Chess con chili.} (28... Nxc1 29. Kxc1 Qe7 30. Rg1 $16 (30. Qxe4 Qxe4 31. Bxe4 Rf7 $15)) 29. Rg1 $2 {[%emt 0:09:42][%mdl 8192]} Nxf2+ $19 {[%emt 0:01:17]} (29... Qxf2 $2 30. Qxf2 Nxf2+ 31. Kc2 $18) 30. Ke1 {[%emt 0:00:20]} Qe3+ {[%emt 0:00:09]} 31. Kf1 {[%emt 0:00:56]} Nd3 {[%emt 0:01:33]} 32. Rxg7 {[%emt 0:03:32]} Qf3+ {[%emt 0:00:06][%mdl 64] Zwischenzug} ({Inferior is} 32... Kxg7 33. Qg2+ Qg3 34. Rc2 $17) 33. Kg1 {[%emt 0:00:13]} Kxg7 {[%emt 0:00:10]} 34. Rd1 {[%emt 0:03:38]} Qe3+ {[%emt 0:01:45]} 35. Kf1 {[%emt 0:00:04]} Qf3+ {[%emt 0:00:11]} 36. Kg1 {[%emt 0:00:05] [#]} Rh8 $1 {[%emt 0:02:00][%csl Gh8][%cal Rf3h1]} 37. Qg2+ {[%emt 0:05:43]} Qxg2+ {[%emt 0:00:07]} 38. Kxg2 {[%emt 0:00:03]} Ne5 {[%emt 0:00:28] ( -> ...Rg6+)} 39. Bxe4 {[%emt 0:00:09]} b6 {[%emt 0:00:52]} 40. Rd5 {[%emt 0:01:36]} Rh5 {[%emt 0:01:01] aiming for ...f3+.} 41. b4 {[%emt 0:31:02]} f3+ {[%emt 0:04:06][%cal Bf4f3,Bf3f2][%mdl 32]} 42. Kg1 {[%emt 0:00:00]} f2+ {[%emt 0:01:08]} 43. Kf1 {[%emt 0:00:00]} Rg5 {[%emt 0:00:27] Weighted Error Value: White=0.87/Black=0.48} 0-1

[Event "101st Irish Championship 2022"]
[Site "Dublin"]
[Date "2022.07.06"]
[Round "5.4"]
[White "Carroll, Peter"]
[Black "Li, Henry"]
[Result "1/2-1/2"]
[ECO "D00"]
[WhiteElo "2116"]
[BlackElo "2319"]
[Annotator "TA"]
[PlyCount "34"]
[EventDate "2022.07.05"]
[EventType "swiss"]
[EventCountry "IRL"]
[SourceTitle "playchess.com"]
[Source "ChessBase"]
[SourceQuality "1"]
[TimeControl "40/6300+30:1800+30"]

{[%evp 16,34,5,8,29,7,39,0,0,1,46,45,42,43,71,79,84,25,53,48,62]} 1. d4 {[%emt 0:00:08]} Nf6 {[%emt 0:00:12]} 2. Nc3 {[%emt 0:00:11]} d5 {[%emt 0:00:19]} 3. Bf4 {[%emt 0:00:08]} g6 {[%emt 0:01:05]} 4. e3 {[%emt 0:00:12]} Bg7 {[%emt 0:00:16]} 5. Nb5 {[%emt 0:00:12]} Na6 {[%emt 0:00:29]} 6. h3 {[%emt 0:00:14]} c6 {[%emt 0:02:54]} 7. Nc3 {[%emt 0:00:19]} Nb8 {[%emt 0:02:15]} 8. Nf3 {[%emt 0:01:35]} O-O {[%emt 0:04:52]} 9. Be2 {[%emt 0:01:38]} Qb6 {[%emt 0:07:18] D00: 1 d4 d5: Unusual lines.} 10. Rb1 {[%emt 0:00:54] [#]} a5 $146 {[%emt 0:02:46]} ({Predecessor:} 10... Nbd7 11. O-O Re8 12. Bh2 Nf8 13. b4 Bf5 14. Nd2 N6d7 15. Na4 Qd8 16. Nc5 Nxc5 17. bxc5 b6 18. Ba6 Bc8 19. Bxc8 Rxc8 20. cxb6 axb6 {½-½ (37) Aronian,L (2781)-Nepomniachtchi,I (2784) chess24.com INT 2020}) 11. Na4 {[%emt 0:07:19]} Qd8 {[%emt 0:10:34] The position is equal.} 12. O-O {[%emt 0:01:57]} Nfd7 {[%emt 0:02:05]} 13. b3 {[%emt 0:05:41]} b5 {[%emt 0:00:53]} 14. Nb2 {[%emt 0:00:25]} Nb6 {[%emt 0:09:39]} 15. c4 {[%emt 0:06:49]} b4 {[%emt 0:07:03]} 16. Bd3 {[%emt 0:02:02]} ({Better is} 16. Qc2 $16) 16... Ba6 {[%emt 0:08:36]} 17. e4 {[%emt 0:06:07]} e6 {[%emt 0:03:58] Weighted Error Value: White=0.15 (very precise) /Black=0.17 (very precise)} 1/2-1/2

[Event "101st Irish Championship 2022"]
[Site "Dublin"]
[Date "2022.07.06"]
[Round "5.5"]
[White "O'Connell, Gerard"]
[Black "Daly, Colm"]
[Result "0-1"]
[ECO "A46"]
[WhiteElo "2052"]
[BlackElo "2190"]
[Annotator "TA"]
[PlyCount "58"]
[EventDate "2022.07.05"]
[EventType "swiss"]
[EventCountry "IRL"]
[SourceTitle "playchess.com"]
[Source "ChessBase"]
[SourceQuality "1"]
[TimeControl "40/6300+30:1800+30"]

{[%evp 12,58,-7,-2,0,-4,0,-8,-8,-7,-12,-14,-12,-27,-18,-79,-21,-68,-64,-64,-64,-100,-49,-54,-41,-41,-50,-39,-19,-53,-22,-28,0,0,0,0,21,-432,-421,-520,-518,-714,-672,-796,-789,-748,-600,-29978,-29979]} 1. d4 {[%emt 0:00:30]} e6 {[%emt 0:16:07]} 2. Nf3 {[%emt 0:00:59]} Nf6 {[%emt 0:00:58]} 3. g3 {[%emt 0:00:09]} b5 {[%emt 0:10:22]} 4. Bg2 {[%emt 0:01:25]} Bb7 {[%emt 0:01:51]} 5. O-O {[%emt 0:01:02]} Be7 {[%emt 0:00:19]} 6. a4 {[%emt 0:00:35]} b4 {[%emt 0:00:33]} 7. c4 {[%emt 0:01:46]} O-O {[%emt 0:01:18] A46: 1 d4 Nf6 2 Nf3 e6: Torre, London and Colle Systems.} 8. Nbd2 {[%emt 0:01:05] has lost popularity (8.b3).} c5 {[%emt 0:01:23]} 9. dxc5 {[%emt 0:02:56]} Na6 {[%emt 0:00:27] The position is equal.} 10. Nb3 {[%emt 0:00:09]} Nxc5 {[%emt 0:00:47]} 11. Nxc5 {[%emt 0:03:21]} Bxc5 {[%emt 0:00:10]} 12. Bf4 {[%emt 0:00:10] Against Qc7} Rc8 {[%emt 0:01:28] [#]} 13. b3 $146 {[%emt 0:01:47]} (13. Rc1 $11 {remains equal.}) ({Predecessor:} 13. Ne5 Bxg2 14. Kxg2 Qb6 15. a5 Qa6 16. Qb3 Rfd8 17. Bg5 Be7 18. Rfc1 {0-1 (40) Buran,J (2264)-Kuchynka,L (2314) Czech Republic 2012}) 13... d6 {[%emt 0:05:17]} ({Better is} 13... d5 $17 14. Nd2 Bd4) 14. Nd2 {[%emt 0:09:23] Inhibits Ne4.} (14. Bg5 $11) 14... Bxg2 {[%emt 0:00:55] Black is more active.} 15. Kxg2 {[%emt 0:00:06]} h6 {[%emt 0:00:10] Inhibits Bg5.} 16. Nf3 {[%emt 0:06:47]} Re8 {[%emt 0:06:05]} ({Black should try} 16... Qb6 $17 17. a5 Qc6) 17. Bc1 $1 $15 {[%emt 0:01:19]} e5 {[%emt 0:05:13]} 18. Bb2 {[%emt 0:01:49]} Qb6 {[%emt 0:01:11]} 19. e3 {[%emt 0:02:46]} Rcd8 {[%emt 0:00:28]} 20. Qc2 {[%emt 0:08:19]} Qc6 {[%emt 0:00:38]} 21. Rad1 {[%emt 0:00:47]} Re6 {[%emt 0:05:55]} 22. Rfe1 {[%emt 0:01:45]} Rf8 {[%emt 0:04:58]} 23. e4 {[%emt 0:06:53]} Ng4 {[%emt 0:04:37]} 24. Re2 $2 {[%emt 0:04:32][%mdl 8192] [#] White does not recover from this.} (24. h3 $1 $11 Nf6 25. Re2) 24... f5 $1 $19 {[%emt 0:02:06][%cal Bf7f5,Bf5f4,Bf4g3][%mdl 32]} ({Worse is} 24... Bxf2 25. Bc1 Bb6 26. Nh4 $15) 25. Rd5 {[%emt 0:16:02]} Ref6 {[%emt 0:03:52] White must now prevent ...fxe4.} 26. Nd2 {[%emt 0:04:05]} f4 {[%emt 0:07:04] aiming for ...f3+.} 27. Qd3 {[%emt 0:09:15]} fxg3 {[%emt 0:06:40][%cal Rf6f2]} 28. f3 {[%emt 0:05:16]} Nf2 {[%emt 0:08:52]} 29. Qb1 {[%emt 0:06:04][%cal Od5c5]} Qc8 {[%emt 0:00:40] Weighted Error Value: White=0.66/Black=0.20 (precise)} 0-1